Workbook

Sheet Доходы
H1: RESPPERSONS&=
A2: ОТЧЕТ ОБ ИСПОЛНЕНИИ БЮДЖЕТА | F2: КОДЫ
E3: Форма по ОКУД | F3: 0503127
A4: на 01.10.2014 г. | E4: Дата | F4: 2014-10-01
E5: по ОКПО
A6: Наименование финансового органа: | B6: Финансовое управление администрации Кежемского района | E6: Глава по БК | F6: 900
A7: Наименование публично-правового образования: | B7: Бюджет Недокурского сельсовета Кежемского района | E7: по ОКТМО | F7: 04624407
A8: Периодичность: годовая
A9: Единица измерения: руб. | E9: по ОКЕИ | F9: 383
A10: 1. Доходы бюджета
A11: Наименование показателя | B11: Код строки | C11: Код дохода по бюджетной классификации | D11: Утвержденные бюджетные назначения | E11: Исполнено | F11: Неисполненные назначения
A18: 1 | B18: 2 | C18: 3 | D18: 4 | E18: 5 | F18: 6
A19: Доходы бюджета - всего | B19: 010 | C19: X | D19: =D21+D58 -> 25541838.27 | E19: =E21+E58 -> 12368366.26 | F19: =IF(OR(D19="-",E19=D19),"-",D19-IF(E19="-",0,E19)) -> 13173472.01
A20: в том числе:
A21: НАЛОГОВЫЕ И НЕНАЛОГОВЫЕ ДОХОДЫ | C21: 000 10000000000000 000 | D21: =D22+D32+D38+D51+D55+D57+D56 -> 922076 | E21: =E22+E32+E38+E51+E55+E57+E56 -> 806542.59 | F21: =IF(OR(D21="-",E21=D21),"-",D21-IF(E21="-",0,E21)) -> 115533.41
A22: НАЛОГИ НА ПРИБЫЛЬ, ДОХОДЫ | C22: 182 10100000000000 000 | D22: =D23 -> 590733 | E22: =E23 -> 535392.94 | F22: 55340.06
A23: Налог на доходы физических лиц | C23: 182 10102000010000 110 | D23: =FIO+D28+D31 -> 590733 | E23: =E24+E28+E31 -> 535392.94 | F23: 55340.06
A24: Налог на доходы физических лиц с доходов, источником которых является налоговый агент, за исключением доходов, в отношении которых исчисление и уплата налога осуществляются в соответствии со статьями 227, 2271 и 228 Налогового кодекса Российской Федерации | C24: 182 10102010010000 110 | D24: =D25+D26+D27 -> 510000 | E24: =E25+E26+E27 -> 454661.12 | F24: 55338.88
A25: Налог на доходы физических лиц с доходов, источником которых является налоговый агент, за исключением доходов, в отношении которых исчисление и уплата налога осуществляются в соответствии со статьями 227, 2271 и 228 Налогового кодекса Российской Федерации (сумма платежа) | C25: 182 10102010011000 110 | D25: =510000-15418-21669 -> 472913 | E25: 417575.66 | F25: =IF(OR(D25="-",E25=D25),"-",D25-IF(E25="-",0,E25)) -> 55337.34
A26: Налог на доходы физических лиц с доходов, источником которых является налоговый агент, за исключением доходов, в отношении которых исчисление и уплата налога осуществляются в соответствии со статьями 227, 2271 и 228 Налогового кодекса Российской Федерации (пени и проценты по соответствующему платежу) | C26: 182 10102010012000 110 | D26: 15418 | E26: 15417.26 | F26: =IF(OR(D26="-",E26=D26),"-",D26-IF(E26="-",0,E26)) -> 0.74
A27: Налог на доходы физических лиц с доходов, источником которых является налоговый агент, за исключением доходов, в отношении которых исчисление и уплата налога осуществляются в соответствии со статьями 227, 227.1 и 228 Налогового кодекса Российской Федерации суммы денежных взысканий (штрафов) по соответствующему платежу согласно законодательству Российской Федерации) | C27: 182 10102010013000 110 | D27: 21669 | E27: 21668.2 | F27: =IF(OR(D27="-",E27=D27),"-",D27-IF(E27="-",0,E27)) -> 0.8
A28: Налог на доходы физических лиц с доходов, полученных от осуществления деятельности физическими лицами, зарегистрированными в качестве индивидуальных предпринимателей, нотариусов, занимающихся частной практикой, адвокатов, учредивших адвокатские кабинеты и других лиц, занимающихся частной практикой в соответствии со статьей 227 Налогового кодекса Российской Федерации | C28: 182 10102020010000 110 | D28: =D29+D30 -> 80683 | E28: =E29+E30 -> 80681.82 | F28: 1.18
A29: Налог на доходы физических лиц с доходов, полученных от осуществления деятельности физическими лицами, зарегистрированными в качестве индивидуальных предпринимателей, нотариусов, занимающихся частной практикой, адвокатов, учредивших адвокатские кабинеты и других лиц, занимающихся частной практикой в соответствии со статьей 227 Налогового кодекса Российской Федерации (сумма платежа) | C29: 182 10102020011000 110 | D29: 80681 | E29: 80680.1 | F29: 0.9
A30: Налог на доходы физических лиц с доходов, полученных от осуществления деятельности физическими лицами, зарегистрированными в качестве индивидуальных предпринимателей, нотариусов, занимающихся частной практикой, адвокатов, учредивших адвокатские кабинеты и других лиц, занимающихся частной практикой в соответствии со статьей 227 Налогового кодекса Российской Федерации (сумма платежа) | C30: 182 10102020012000 110 | D30: 2 | E30: 1.72 | F30: =IF(OR(D30="-",E30=D30),"-",D30-IF(E30="-",0,E30)) -> 0.28
A31: Налог на доходы физических лиц с доходов, полученных физическими лицамив соответствии со статьей 228 Налогового кодекса Российской Федерации (сумма денежныхвзысканий (штрафов) по соответствующему платежу согласно законодательству Российской Федерации) | C31: 182 10102030013000 110 | D31: 50 | E31: 50 | F31: =IF(OR(D31="-",E31=D31),"-",D31-IF(E31="-",0,E31)) -> -
A32: НАЛОГИ НА ТОВАРЫ (РАБОТЫ, УСЛУГИ), РЕАЛИЗУЕМЫЕ НА ТЕРРИТОРИИ РОССИЙСКОЙ ФЕДЕРАЦИИ | C32: 100 10300000000000 000 | D32: =D33 -> 105200 | E32: =E33 -> 58370.61 | F32: 46829.39
A33: Акцизы по подакцизным товарам (продукции), производимым на территории Российской Федерации | C33: 100 10302000010000 110 | D33: =D34+D35+D36+D37 -> 105200 | E33: =E34+E35+E36+E37 -> 58370.61 | F33: 46829.39
A34: Доходы от уплаты акцизов на дизельное топливо, зачисляемые в консолидированные бюджеты субъектов Российской Федерации | C34: 100 10302230010000 110 | D34: 38500 | E34: 22168.48 | F34: 16331.52
A35: Доходы от уплаты акцизов на моторные масла для дизельных и (или) карбюраторных (инжекторных) двигателей, зачисляемые в консолидированные бюджеты субъектов Российской Федерации | C35: 100 10302240010000 110 | D35: 800 | E35: 461.79 | F35: 338.21
A36: Доходы от уплаты акцизов на автомобильный бензин, производимый на территории Российской Федерации, зачисляемые в консолидированные бюджеты субъектов Российской Федерации | C36: 100 10302250010000 110 | D36: 62300 | E36: 36387.06 | F36: 25912.94
A37: Доходы от уплаты акцизов на прямогонный бензин, производимый на территории Российской Федерации, зачисляемые в консолидированные бюджеты субъектов Российской Федерации | C37: 100 10302260010000 110 | D37: 3600 | E37: -646.72 | F37: 4246.72
A38: НАЛОГИ НА ИМУЩЕСТВО | C38: 182 10600000000000 000 | D38: =D39+D43 -> 54200 | E38: =E39+E43 -> 38977.08 | F38: 15222.92
A39: Налог на имущество физических лиц | C39: 182 10601000000000 110 | D39: =D40 -> 44000 | E39: =E40 -> 31222.87 | F39: 12777.13
A40: Налог на имущество физических лиц, взимаемый по ставкам, применяемым к объектам налогообложения, расположенным в границах поселений | C40: 182 10601030100000 110 | D40: =D41+D42 -> 44000 | E40: =E41+E42 -> 31222.87 | F40: 12777.13
A41: Налог на имущество физических лиц, взимаемый по ставкам, применяемым к объектам налогообложения, расположенным в границах поселений (сумма платежа) | C41: 182 10601030101000 110 | D41: =46000-4396-2000 -> 39604 | E41: 26420.64 | F41: 13183.36
A42: Налог на имущество физических лиц, взимаемый по ставкам, применяемым к объектам налогообложения, расположенным в границах поселений (пени, проценты) | C42: 182 10601030102000 110 | D42: 4396 | E42: 4802.23 | F42: -406.23
A43: Земельный налог | C43: 182 10606000000000 110 | D43: =D44+D47 -> 10200 | E43: =E44+E47 -> 7754.21 | F43: 2445.79
A44: Земельный налог, взимаемый по ставкам, установленным в соответствии с подпунктом 1 пункта 1 статьи 394 Налогового кодекса Российской Федерации | C44: 182 10606010000000 110 | D44: =D45+D46 -> 5200 | E44: =E45+E46 -> 2764.23 | F44: 2435.77
A45: Земельный налог, взимаемый по ставкам, установленным в соответствии с подпунктом 1 пункта 1 статьи 394 Налогового кодекса Российской Федерации и применяемым к объектам налогообложения, расположенным в границах поселений | C45: 182 10606013101000 110 | D45: =5200-51 -> 5149 | E45: 2713.23 | F45: 2435.77
A46: Земельный налог, взимаемый по ставкам, установленным в соответствии с подпунктом 1 пункта 1 статьи 394 Налогового кодекса Российской Федерации и применяемым к объектам налогообложения, расположенным в границах поселений | C46: 182 10606013102000 110 | D46: 51 | E46: 51 | F46: =IF(OR(D46="-",E46=D46),"-",D46-IF(E46="-",0,E46)) -> -
A47: Земельный налог, взимаемый по ставкам, установленным в соответствии с подпунктом 2 пункта 1 статьи 394 Налогового кодекса Российской Федерации | C47: 182 10606020000000 110 | D47: =D49+D48+D50 -> 5000 | E47: =E49+E48+E50 -> 4989.98 | F47: 10.02
A48: Земельный налог, взимаемый по ставкам, установленным в соответствии с подпунктом 2 пункта 1 статьи 394 Налогового кодекса Российской Федерации и применяемым к объектам налогообложения, расположенным в границах поселений (сумма платежа (ререрасчеты, недоимка и задолженность по соответствующему платежу, в том числе по отмененному) | C48: 182 10606023101000 110 | D48: =5000-3000-40 -> 1960 | E48: 1953.35 | F48: =IF(OR(D48="-",E48=D48),"-",D48-IF(E48="-",0,E48)) -> 6.65
A49: Земельный налог, взимаемый по ставкам, установленным в соответствии с подпунктом 2 пункта 1 статьи 394 Налогового кодекса Российской Федерации и применяемым к объектам налогообложения, расположенным в границах поселений (пени и проценты по соответствующему платежу) | C49: 182 10606023102000 110 | D49: 40 | E49: 36.63 | F49: 3.37
A50: Земельный налог, взимаемый по ставкам, установленным в соответствии с подпунктом 2 пункта 1 статьи 394 Налогового кодекса Российской Федерации и применяемым к объектам налогообложения, расположенным в границах поселений (пени и проценты по соответствующему платежу) | C50: 182 10606023103000 110 | D50: 3000 | E50: 3000 | F50: =IF(OR(D50="-",E50=D50),"-",D50-IF(E50="-",0,E50)) -> -
A51: ГОСУДАРСТВЕННАЯ ПОШЛИНА | C51: 807 10800000000000 000 | D51: =D52 -> 6800 | E51: 7100 | F51: -300
A52: Государственная пошлина за совершение нотариальных действий (за исключением действий, совершаемых консульскими учреждениями Российской Федерации) | C52: 807 10804000010000 110 | D52: 6800 | E52: 7100 | F52: -300
A53: Государственная пошлина за совершение нотариальных действий должностными лицами органов местного самоуправления, уполномоченными в соответствии с законодательными актами Российской Федерации на совершение нотариальных действий | C53: 807 10804020010000 110 | D53: 6800 | E53: 7100 | F53: -300
A54: Государственная пошлина за совершение нотариальных действий должностными лицами органов местного самоуправления, уполномоченными в соответствии с законодательными актами Российской Федерации на совершение нотариальных действий (сумма платежа) | C54: 807 10804020011000 110 | D54: 6800 | E54: 7100 | F54: -300
A55: Доходы от использования имущества, находящегося в государственной муниципальной собственности | C55: 903 11105013101000 120 | D55: 3323 | E55: 3907.57 | F55: -584.57
A56: Прочие неналоговые доходы бюджетов поселений | C56: 807 11705050100000 180 | D56: 125355 | E56: =50000+66606+8748.39 -> 125354.39 | F56: 0.61
A57: Средства самообложения граждан, зачисляемые в бюджеты поселений | C57: 807 11714030100000 180 | D57: 36465 | E57: 37440 | F57: =IF(OR(D57="-",E57=D57),"-",D57-IF(E57="-",0,E57)) -> -975
A58: БЕЗВОЗМЕЗДНЫЕ ПОСТУПЛЕНИЯ | C58: 807 20000000000000 000 | D58: =D59 -> 24619762.27 | E58: =E59 -> 11561823.67 | F58: 13057938.6
A59: БЕЗВОЗМЕЗДНЫЕ ПОСТУПЛЕНИЯ ОТ ДРУГИХ БЮДЖЕТОВ БЮДЖЕТНОЙ СИСТЕМЫ РОССИЙСКОЙ ФЕДЕРАЦИИ | C59: 807 20200000000000 000 | D59: =D60+D65+D74++D68+D69+D70+D72+D71+D73 -> 24619762.27 | E59: =E60+E65+E74++E68+E69+E70+E72+E71+E73 -> 11561823.67 | F59: 13057938.6
A60: Дотации бюджетам субъектов Российской Федерации и муниципальных образований | C60: 807 20201000000000 151 | D60: =D61+D63 -> 7235502 | E60: =E61+E63 -> 4838936 | F60: 2396566
A61: Дотации на выравнивание бюджетной обеспеченности | C61: 807 20201001000000 151 | D61: =D62 -> 387222 | E61: =E62 -> 293532 | F61: 93690
A62: Дотации бюджетам поселений на выравнивание бюджетной обеспеченности | C62: 807 20201001100000 151 | D62: 387222 | E62: 293532 | F62: 93690
A63: Дотации бюджетам на поддержку мер по обеспечению сбалансированности бюджетов | C63: 807 20201003000000 151 | D63: =D64 -> 6848280 | E63: =E64 -> 4545404 | F63: 2302876
A64: Дотации бюджетам поселений на поддержку мер по обеспечению сбалансированности бюджетов | C64: 807 20201003100000 151 | D64: 6848280 | E64: 4545404 | F64: 2302876
A65: Субвенции бюджетам субъектов Российской Федерации и муниципальных образований | C65: 807 20203000000000 151 | D65: 80100 | E65: =E66 -> 60075 | F65: 20025
A66: Субвенции бюджетам муниципальных образований края на осуществление государственных полномочий по первичному воинскому учету на территориях, где отсутствуют военные комиссариаты, в соответствии с Федеральным законом | C66: 807 20203001500000 151 | D66: 80100 | E66: =E67 -> 60075 | F66: 20025
A67: Субвенции бюджетам муниципальных образований края на осуществление государственных полномочий по первичному воинскому учету на территориях, где отсутствуют военные комиссариаты, в соответствии с Федеральным законом | C67: 807 20203001510000 151 | D67: 80100 | E67: =53400+6675 -> 60075 | F67: 20025
A68: Иные межбюджетные трансферты на реализацию Закона края от 23 апреля 2009 года №8-3170 "О наделении органов местного самоуправления муниципальных образований края государственными полномочиями по созданию и обеспечению деятельности административных комиссий" на 2014 год и плановый период 2015-2016 годов | C68: 807 20204999100008 151 | D68: =2270-23 -> 2247 | E68: 1696 | F68: =IF(OR(D68="-",E68=D68),"-",D68-IF(E68="-",0,E68)) -> 551
A69: Межбюджетные трансферты на государственную поддержку действующих и вновь создаваемых спортивных клубов по месту жительства граждан | C69: 807 20204999100036 151 | D69: 356570 | E69: 356570 | F69: -
A70: Межбюджетные трансферты на переселение граждан из аварийного жилищного фонда в муниципальных образованиях Красноярского края на 2013-2015 годы | C70: 807 20204999100039 151 | D70: 16086496.6 | E70: 6000000 | F70: 10086496.6
A71: Межбюджетные трансферты на энергосбережение и повышение энергетической эффективности в Красноярском крае на 2010-2012 г. и на период до 2020 г. в части расходов на реализацию мероприятий по энергосбережению и повышению энергетической эффективности в связи с достижением наилучших показателей в области энергосбережения | C71: 807 20204999100040 151 | D71: 98900 | E71: 0 | F71: 98900
A72: Межбюджетные трансферты на содержание автомобильных дорог общего пользования местного значения городских округов, городских и сельских поселений за счет средств дорожного фонда Красноярского края в рамках подпрограммы «Дороги Красноярья» государственной программы Красноярского края «Развитие транспортной системы Красноярского края» | C72: 807 20204999100042 151 | D72: 394400 | E72: 224000 | F72: 170400
A73: Межбюджетные трансферты на подготовку генеральных планов городских и сельских поселений, на разработку проектов планировки и межевания земельных участков для жилищного строительства, формирование и постановку земельных участков на кадастровый учет в рамках подпрограммы "Стимулирование жилищного строительства на территории Красноярского края" государственной программы Красноярского края "Создание условий для обеспечения доступным и комфортным жильем граждан Красноярского края" | C73: 807 20204999100045 151 | D73: 80546.67 | E73: 80546.67 | F73: =IF(OR(D73="-",E73=D73),"-",D73-IF(E73="-",0,E73)) -> -
A74: Межбюдетные трансферты на реализацию проектов по благоустройству территорий поселений в рамках подпрограммы «Поддержка муниципальных проектов и мероприятий по благоустройству территорий» государственной программы Красноярского края «Содействие развитию местного самоуправления» | C74: 807 20204999100046 151 | D74: 285000 | E74: 0 | F74: 285000
